bitfinex-derivatives/quotes_BTCF0:USTF0_20260119
["timestamp","ask_amount","ask_price","bid_price","bid_amount"]
[1768791169306,0.21289246,92662.0,92644.0,0.0972]
[1768791171017,0.22368846,92662.0,92644.0,0.0972]
[1768791171514,0.21289246,92662.0,92644.0,0.0972]
[1768791175015,0.21289246,92662.0,92645.0,0.010798]
[1768791176016,0.20983331,92661.0,92644.0,0.0972]
[1768791176517,0.09713561,92661.0,92644.0,0.21546389]
[1768791177517,0.09713561,92661.0,92644.0,0.22626189]
[1768791178218,0.010797,92660.0,92644.0,0.21546389]
[1768791178718,0.010797,92657.0,92644.0,0.21546389]
[1768791178919,0.010797,92657.0,92644.0,0.0972]
[1768791179610,0.010797,92654.0,92644.0,0.0972]
[1768791180717,0.20983331,92649.0,92632.0,0.03880044]
[1768791181015,0.20983331,92649.0,92633.0,0.0972]
[1768791181210,0.20983331,92625.0,92610.0,0.077708]
[1768791181412,0.20983331,92619.0,92600.0,0.108003]
[1768791181722,0.20983331,92614.0,92600.0,0.0972]
[1768791182012,0.09713561,92612.0,92596.0,0.010804]
[1768791182220,0.1126977,92616.0,92599.0,0.010804]
[1768791182510,0.1126977,92616.0,92602.0,0.06066433]
[1768791182716,0.09713561,92617.0,92604.0,0.06066433]
[1768791183106,0.09713561,92617.0,92606.0,0.06066433]
[1768791183306,0.09713561,92617.0,92599.0,0.02589659]
[1768791183508,0.09713561,92617.0,92604.0,0.06066433]
[1768791183917,0.09736193,92619.0,92606.0,0.06066433]
[1768791184218,0.09736193,92619.0,92603.0,0.06066433]
[1768791184413,0.30719524,92619.0,92603.0,0.06066433]
[1768791184613,0.30719524,92619.0,92605.0,0.06066433]
[1768791184824,0.30719524,92619.0,92604.0,0.06066433]
[1768791185118,0.30719524,92619.0,92603.0,0.06066433]
[1768791185308,0.30719524,92619.0,92604.0,0.06066433]
[1768791185705,0.30719524,92619.0,92606.0,0.06066433]
[1768791186004,0.30719524,92619.0,92604.0,0.06066433]
[1768791186416,0.20983331,92618.0,92606.0,0.06066433]
[1768791186620,0.09713561,92618.0,92604.0,0.06066433]
[1768791187014,0.09713561,92618.0,92607.0,0.06066433]
[1768791187209,0.09713561,92618.0,92605.0,0.06066433]
[1768791187616,0.09713561,92618.0,92607.0,0.06066433]
[1768791187817,0.09713561,92618.0,92605.0,0.06066433]
[1768791188217,0.09713561,92618.0,92607.0,0.06066433]
[1768791188411,0.09713561,92618.0,92605.0,0.06066433]
[1768791188811,0.09713561,92618.0,92601.0,0.010803]
[1768791188812,0.09713561,92618.0,92607.0,0.06066433]
[1768791189016,0.09736193,92619.0,92605.0,0.06066433]
[1768791189206,0.09736193,92619.0,92607.0,0.06066433]
[1768791189410,0.09736193,92619.0,92604.0,0.010803]
[1768791189616,0.09736193,92619.0,92607.0,0.06066433]
[1768791190410,0.09736193,92619.0,92608.0,0.06066433]
[1768791190622,0.09736193,92619.0,92607.0,0.06066433]
[1768791191118,0.09736193,92619.0,92608.0,0.06066433]
[1768791191321,0.09736193,92619.0,92607.0,0.06066433]
[1768791191813,0.09736193,92619.0,92608.0,0.06066433]
[1768791192019,0.09736193,92619.0,92607.0,0.06066433]
[1768791192406,0.09736193,92619.0,92609.0,0.06066433]
[1768791192618,0.1126977,92618.0,92607.0,0.06066433]
[1768791192824,0.20983331,92617.0,92607.0,0.06066433]
[1768791193120,0.20983331,92617.0,92609.0,0.06066433]
[1768791193424,0.09713561,92617.0,92611.0,0.06066433]
[1768791193620,0.09713561,92617.0,92606.0,0.06066433]
[1768791194012,0.09713561,92617.0,92599.0,0.14415948]
[1768791194320,0.09713561,92617.0,92606.0,0.06066433]
[1768791194712,0.09713561,92617.0,92610.0,0.06066433]
[1768791194912,0.09713561,92617.0,92599.0,0.14415948]
[1768791195313,0.09713561,92617.0,92602.0,0.010803]
[1768791195513,0.09736193,92619.0,92601.0,0.11826389]
[1768791195919,0.09736193,92619.0,92602.0,0.11826389]
[1768791196317,0.09736193,92619.0,92604.0,0.010803]
[1768791197225,0.09736193,92619.0,92606.0,0.010803]
[1768791199228,0.09736193,92619.0,92602.0,0.010803]
[1768791199523,0.30719524,92619.0,92602.0,0.010803]
[1768791199729,0.30719524,92619.0,92599.0,0.13335648]
[1768791200528,0.19449754,92619.0,92599.0,0.13335648]
[1768791200735,0.19449754,92619.0,92599.0,0.22500892]
[1768791200920,0.19449754,92619.0,92601.0,0.11826389]
[1768791202130,0.20983331,92618.0,92599.0,0.10674503]
[1768791202328,0.20983331,92616.0,92599.0,0.01509259]
[1768791202629,0.20983331,92616.0,92598.0,0.0972]
[1768791202831,0.20983331,92616.0,92602.0,0.010803]
[1768791203131,0.09713561,92616.0,92604.0,0.010803]
[1768791205429,0.20591712,92613.0,92598.0,0.12309094]
[1768791205731,0.09136078,92613.0,92598.0,0.12309094]
[1768791206533,0.20591712,92617.0,92600.0,0.010803]
[1768791207935,0.20591712,92617.0,92602.0,0.010803]
[1768791208336,0.00016193,92619.0,92606.0,0.11664328]
[1768791208733,0.00016193,92619.0,92611.0,0.010802]
[1768791209230,0.02551553,92618.0,92611.0,0.010802]
[1768791209437,0.00016193,92619.0,92611.0,0.010802]
[1768791209628,0.0254677,92618.0,92611.0,0.010802]
[1768791209827,0.00016193,92619.0,92611.0,0.010802]
[1768791210029,0.0254677,92618.0,92611.0,0.010802]
[1768791210232,0.00016193,92619.0,92614.0,0.010802]
[1768791210432,0.09724,92623.0,92605.0,0.09420637]
[1768791210633,0.02537066,92622.0,92605.0,0.09420637]
[1768791210831,0.02537066,92621.0,92605.0,0.09420637]
[1768791211038,0.02537066,92620.0,92605.0,0.09420637]
[1768791211244,0.02537066,92619.0,92605.0,0.09420637]
[1768791211542,0.02537933,92618.0,92612.0,0.010802]
[1768791211741,0.11455634,92624.0,92612.0,0.010802]
[1768791211942,0.02537933,92623.0,92612.0,0.010802]
[1768791212246,0.02537933,92622.0,92612.0,0.010802]
[1768791212442,0.02537933,92621.0,92612.0,0.010802]
[1768791212642,0.02537933,92620.0,92612.0,0.010802]
[1768791212843,0.02537933,92619.0,92612.0,0.010802]
[1768791213047,0.02537933,92618.0,92612.0,0.010802]
[1768791213234,0.11455634,92623.0,92612.0,0.010802]
[1768791213545,0.02538676,92622.0,92612.0,0.010802]
[1768791213744,0.02538676,92621.0,92612.0,0.010802]
[1768791214046,0.02538676,92620.0,92612.0,0.010802]
[1768791214347,0.02538676,92619.0,92612.0,0.010802]
[1768791214653,0.010799,92642.0,92622.0,0.11664328]
[1768791214834,0.30315712,92643.0,92622.0,0.11664328]
[1768791215033,0.20591712,92641.0,92622.0,0.11664328]
[1768791215233,0.09136078,92636.0,92618.0,0.010801]
[1768791215433,0.20591712,92635.0,92618.0,0.010801]
[1768791215639,0.20591712,92634.0,92618.0,0.010801]
[1768791216562,0.09136078,92634.0,92620.0,0.010801]
[1768791217159,0.09136078,92634.0,92617.0,0.11664328]
[1768791217358,0.09136078,92634.0,92618.0,0.010801]
[1768791217751,0.09136078,92634.0,92617.0,0.11664328]
[1768791217752,0.09136078,92634.0,92620.0,0.010801]
[1768791217958,0.09136078,92634.0,92626.0,0.0108]
[1768791218160,0.11455634,92637.0,92617.0,0.11664328]
[1768791218464,0.09182633,92639.0,92628.0,0.0108]
[1768791218672,0.09182633,92639.0,92621.0,0.11473022]
[1768791218960,0.09182633,92639.0,92628.0,0.0108]
[1768791219554,0.00237468,92644.0,92632.0,0.0108]
[1768791220767,0.11831369,92644.0,92632.0,0.0108]
[1768791222664,0.00237468,92644.0,92632.0,0.0108]
[1768791224772,0.00237468,92644.0,92634.0,0.010799]
[1768791226464,0.02478126,92643.0,92634.0,0.010799]
[1768791226661,0.02478126,92642.0,92634.0,0.010799]
[1768791226859,0.02478126,92641.0,92634.0,0.010799]
[1768791227066,0.02478126,92640.0,92634.0,0.010799]
[1768791227373,2.6e-07,92639.0,92634.0,0.010799]
[1768791227674,0.00237468,92644.0,92634.0,0.010799]
[1768791228175,0.00237468,92644.0,92637.0,0.010799]
[1768791228367,0.00237468,92644.0,92630.0,0.14556796]
[1768791228567,0.00237468,92644.0,92636.0,0.010799]
[1768791229774,0.00237468,92644.0,92630.0,0.14556796]
[1768791230369,0.00237468,92644.0,92636.0,0.010799]
[1768791231668,0.00237468,92644.0,92634.0,0.010799]
[1768791233075,0.00237468,92644.0,92630.0,0.14556796]
[1768791233376,0.00237468,92644.0,92634.0,0.010799]
[1768791236172,0.00237468,92644.0,92630.0,0.15636796]
[1768791236775,0.00237468,92644.0,92631.0,0.21581715]
[1768791236979,0.00237468,92644.0,92632.0,0.11970215]
[1768791237571,0.08823134,92656.0,92629.0,0.00016193]
[1768791237572,0.07743434,92656.0,92637.0,0.11970215]
[1768791237772,0.25955558,92660.0,92642.0,0.010799]
[1768791237773,0.07743434,92657.0,92642.0,0.010799]
[1768791237975,0.07743434,92658.0,92640.0,0.26527011]
[1768791238174,0.07743434,92658.0,92640.0,0.11970215]
[1768791238473,0.07743434,92658.0,92641.0,0.010799]
[1768791238674,0.28766119,92658.0,92641.0,0.010799]
[1768791238875,0.21022685,92657.0,92641.0,0.010799]
[1768791239079,0.11398762,92656.0,92641.0,0.010799]
[1768791239381,0.02309958,92655.0,92641.0,0.010799]
[1768791239581,0.02309958,92654.0,92641.0,0.010799]
[1768791239781,0.02309958,92653.0,92636.0,0.096115]
[1768791240083,0.02309958,92652.0,92639.0,0.010799]
[1768791240380,0.02309958,92651.0,92639.0,0.010799]
[1768791240583,0.02309958,92650.0,92639.0,0.010799]
[1768791240777,0.02309958,92649.0,92639.0,0.010799]
[1768791241080,0.02309958,92648.0,92639.0,0.010799]
[1768791241281,0.02309958,92647.0,92636.0,0.21581715]
[1768791241578,0.21022685,92645.0,92628.0,0.0972]
[1768791241880,0.35579481,92640.0,92628.0,0.0972]
[1768791242185,0.09623923,92639.0,92628.0,0.0972]
[1768791242381,0.21022685,92639.0,92628.0,0.0972]
[1768791243381,0.09623923,92639.0,92628.0,0.0972]
[1768791247683,0.09623923,92637.0,92628.0,0.0972]
[1768791247987,0.11398762,92636.0,92628.0,0.0972]
[1768791248578,0.21038878,92643.0,92631.0,0.0108]
[1768791248778,0.00016193,92643.0,92633.0,0.0108]
[1768791249482,0.00016193,92643.0,92631.0,0.0108]
[1768791249986,0.00016193,92643.0,92633.0,0.0108]
[1768791250183,0.00016193,92643.0,92630.0,0.15636796]
[1768791253192,0.00016193,92643.0,92628.0,0.0972]
[1768791256296,0.00016193,92643.0,92629.0,0.0108]
[1768791256794,0.00016193,92643.0,92630.0,0.14556796]
[1768791256992,0.21038878,92643.0,92628.0,0.0972]
[1768791257394,0.09640116,92643.0,92628.0,0.0972]
[1768791257892,0.21022685,92641.0,92609.0,0.11970215]
[1768791258197,0.11398762,92628.0,92608.0,0.11970215]
[1768791258398,0.21022685,92628.0,92610.0,0.14556796]
[1768791258696,0.21022685,92628.0,92615.0,0.00253712]
[1768791259095,0.21022685,92628.0,92612.0,0.010802]
[1768791259294,0.21022685,92628.0,92616.0,0.00253712]
[1768791259491,0.21022685,92628.0,92612.0,0.010802]
[1768791259689,0.21022685,92628.0,92616.0,0.00253712]
[1768791259894,0.21022685,92628.0,92610.0,0.14556796]
[1768791260095,0.21022685,92628.0,92616.0,0.00253712]
[1768791260296,0.21022685,92628.0,92615.0,0.00253712]
[1768791260499,0.11398762,92627.0,92615.0,0.00253712]
[1768791260800,0.11398762,92627.0,92619.0,0.00253712]
[1768791261096,0.21022685,92614.0,92607.0,0.05123479]
[1768791261399,0.04283061,92643.0,92600.0,0.14556796]
[1768791261400,0.11398762,92615.0,92600.0,0.14556796]
[1768791261596,0.11398762,92611.0,92596.0,0.0776454]
[1768791261801,0.11398762,92611.0,92598.0,0.00016193]
[1768791262100,0.09623923,92612.0,92598.0,0.00016193]
[1768791262488,0.09623923,92613.0,92598.0,0.00016193]
[1768791262793,0.09623923,92613.0,92600.0,0.14556796]
[1768791262987,0.11704251,92613.0,92600.0,0.14556796]
[1768791263199,0.11704251,92612.0,92600.0,0.14556796]
[1768791264196,0.09327552,92613.0,92600.0,0.14556796]
[1768791266604,0.09327552,92613.0,92598.0,0.00016193]
[1768791266800,0.09327552,92613.0,92600.0,0.14556796]
[1768791267206,0.11704251,92616.0,92600.0,0.14556796]
[1768791268409,0.00016193,92617.0,92600.0,0.26102874]
[1768791268605,0.00016193,92617.0,92601.0,0.11546078]
[1768791269321,0.00016193,92617.0,92607.0,0.15637096]
[1768791269609,0.053915,92779.0,92607.0,0.14556796]
[1768791269610,0.30751803,92625.0,92607.0,0.14556796]
[1768791269810,0.21031803,92622.0,92603.0,0.12626378]
[1768791270112,0.21031803,92622.0,92610.0,0.14556796]
[1768791272604,0.21031803,92622.0,92603.0,0.12626378]
[1768791272804,0.21031803,92622.0,92610.0,0.14556796]
[1768791273710,0.12784351,92621.0,92610.0,0.14556796]
[1768791273910,0.11704251,92621.0,92610.0,0.14556796]
[1768791274715,0.12784451,92617.0,92600.0,0.14556796]
[1768791275712,0.09327552,92618.0,92601.0,0.11546078]
[1768791275912,0.010801,92620.0,92602.0,0.09112921]
[1768791276114,0.22111903,92620.0,92601.0,0.11546078]
[1768791276513,0.11704251,92619.0,92601.0,0.11546078]
[1768791277618,0.11704251,92619.0,92600.0,0.14556796]
[1768791277815,0.11704251,92618.0,92600.0,0.14556796]
[1768791278012,0.10871274,92617.0,92600.0,0.14556796]
[1768791278203,0.10871274,92617.0,92601.0,0.010803]
[1768791278409,0.09810481,92618.0,92601.0,0.010803]
[1768791278717,0.010801,92620.0,92601.0,0.12094371]
[1768791280223,0.010801,92620.0,92601.0,0.11014071]
[1768791280422,0.21761855,92620.0,92601.0,0.11014071]
[1768791282226,0.21761855,92620.0,92601.0,0.12094371]
[1768791283629,0.10890581,92620.0,92601.0,0.22057636]
[1768791283930,0.09810481,92620.0,92601.0,0.22057636]
[1768791284528,0.09810481,92620.0,92602.0,0.11014071]
[1768791285427,0.09810481,92620.0,92610.0,0.14556796]
[1768791285925,0.09810481,92620.0,92602.0,0.11014071]
[1768791285926,0.010801,92621.0,92602.0,0.20977336]
[1768791286230,0.02305362,92620.0,92604.0,0.12094371]
[1768791286428,0.11951374,92624.0,92604.0,0.12094371]
[1768791286625,0.010801,92622.0,92604.0,0.11014071]
[1768791286930,0.02305361,92621.0,92604.0,0.11014071]
[1768791287128,0.02305361,92620.0,92604.0,0.11014071]
[1768791287427,0.010801,92622.0,92604.0,0.11014071]
[1768791287628,0.02305727,92621.0,92604.0,0.11014071]
[1768791287829,0.02305727,92620.0,92604.0,0.11014071]
[1768791288030,0.010801,92622.0,92604.0,0.11014071]
[1768791288225,0.02305899,92621.0,92604.0,0.11014071]
[1768791288426,0.02305899,92620.0,92604.0,0.11014071]
[1768791288731,0.010801,92622.0,92604.0,0.11014071]
[1768791288931,0.02305899,92621.0,92604.0,0.11014071]
[1768791289131,0.13177173,92620.0,92602.0,0.010803]
[1768791289332,0.09810481,92621.0,92602.0,0.12094371]
[1768791289533,0.02306065,92620.0,92602.0,0.12094371]
[1768791289725,0.09810481,92621.0,92602.0,0.12094371]
[1768791289926,0.02306065,92620.0,92602.0,0.12094371]
[1768791290227,0.09810481,92621.0,92603.0,0.10797678]
[1768791290421,0.10871274,92617.0,92602.0,0.09724]
[1768791292623,0.09810481,92618.0,92602.0,0.09724]
[1768791293029,0.09810481,92618.0,92603.0,0.010803]
[1768791295730,0.09810481,92618.0,92602.0,0.09724]
[1768791295931,0.09810481,92618.0,92602.0,0.108043]
[1768791296131,0.21162999,92616.0,92602.0,0.09724]
[1768791296439,0.11951247,92615.0,92602.0,0.09724]
[1768791297034,0.09724,92624.0,92590.0,0.09724]
[1768791297035,0.09211752,92609.0,92590.0,0.09724]
[1768791297245,0.11951247,92604.0,92590.0,0.11076907]
[1768791297431,0.11951247,92602.0,92590.0,0.11076907]
[1768791299138,0.1196744,92605.0,92590.0,0.11076907]
[1768791299527,0.00016193,92605.0,92590.0,0.11076907]
[1768791303644,0.1196744,92605.0,92590.0,0.11076907]
[1768791304437,0.00016193,92605.0,92590.0,0.23024367]
[1768791304837,0.00016193,92605.0,92591.0,0.010804]
[1768791305240,0.00016193,92605.0,92590.0,0.21943867]
[1768791305544,0.00016193,92605.0,92590.0,0.11076907]
[1768791306336,0.00016193,92605.0,92590.0,0.12157407]
[1768791308443,0.00016193,92605.0,92590.0,0.23024367]
[1768791310347,0.00016193,92605.0,92590.0,0.21943867]
[1768791311052,0.00016193,92605.0,92590.0,0.12219867]
[1768791315755,0.09211752,92601.0,92589.0,0.00237611]
[1768791315960,0.22243399,92596.0,92582.0,0.09724]
[1768791316160,0.22243399,92596.0,92577.0,0.11049388]
[1768791316651,0.010804,92600.0,92582.0,0.1086696]
[1768791317445,0.09211752,92602.0,92584.0,0.11104582]
[1768791318056,0.02336974,92601.0,92584.0,0.11104582]
[1768791318358,0.09211752,92602.0,92584.0,0.11104582]
[1768791318548,0.09211752,92602.0,92585.0,0.010805]
[1768791318747,0.09724,92603.0,92590.0,0.010805]
[1768791318950,0.00016193,92605.0,92590.0,0.010805]
[1768791319160,0.11951247,92603.0,92584.0,0.09914784]
[1768791319359,0.18935752,92604.0,92585.0,0.1086696]
[1768791319553,0.02336623,92603.0,92585.0,0.1086696]
[1768791319748,0.18935752,92604.0,92585.0,0.1086696]
[1768791319957,0.02336623,92603.0,92585.0,0.1086696]
[1768791320150,0.18935752,92604.0,92585.0,0.1086696]
[1768791320351,0.02336541,92603.0,92585.0,0.1086696]
[1768791320649,0.18935752,92604.0,92588.0,0.010805]
[1768791320849,0.02336541,92603.0,92588.0,0.010805]
[1768791321052,0.18935752,92604.0,92588.0,0.010805]
[1768791321248,0.02336554,92603.0,92585.0,0.1086696]
[1768791321554,0.11951247,92598.0,92584.0,0.00237622]
[1768791321761,0.21162999,92597.0,92584.0,0.00237622]
[1768791322260,0.21162999,92596.0,92584.0,0.00237622]
[1768791323064,0.11836788,92595.0,92584.0,0.00237622]
[1768791323259,0.11836788,92595.0,92577.0,0.01372226]
[1768791323460,0.11836788,92595.0,92577.0,0.01367685]
[1768791323660,0.11836788,92595.0,92576.0,0.21746921]
[1768791324063,0.09568737,92593.0,92576.0,0.010806]
[1768791324265,0.09568737,92593.0,92573.0,0.21166539]
[1768791324266,0.11836788,92590.0,92574.0,0.0136433]
[1768791324560,0.11836788,92590.0,92573.0,0.09724]
[1768791324752,0.11836788,92590.0,92573.0,0.11076759]
[1768791326463,0.09568737,92591.0,92574.0,0.010806]
[1768791326656,0.11836788,92594.0,92577.0,0.010806]
[1768791326964,0.010805,92585.0,92566.0,0.212419]
[1768791327266,0.11836788,92585.0,92567.0,0.09724]
[1768791327761,0.1185299,92585.0,92567.0,0.09724]
[1768791329161,0.1185299,92585.0,92567.0,0.108047]
[1768791330068,0.010806,92579.0,92563.0,0.00010814]
[1768791330360,0.21405525,92580.0,92563.0,0.00010814]
[1768791330761,0.21405525,92580.0,92563.0,0.01385982]
[1768791331554,0.09568737,92580.0,92563.0,0.01385982]
[1768791333563,0.21405525,92579.0,92563.0,0.00010814]
[1768791333767,0.21405525,92578.0,92563.0,0.00010814]
[1768791334069,0.21405525,92578.0,92563.0,0.01330958]
[1768791335172,0.21405525,92582.0,92563.0,0.01330958]
[1768791335363,0.11836788,92581.0,92563.0,0.01330958]
[1768791336070,0.21405525,92581.0,92563.0,0.01330958]
[1768791336269,0.11836788,92580.0,92566.0,0.010807]
[1768791336564,0.09568737,92581.0,92563.0,0.01330958]
[1768791336565,0.09568737,92581.0,92567.0,0.010807]
[1768791339869,0.00016202,92585.0,92567.0,0.010807]
[1768791340574,0.1188281,92585.0,92567.0,0.010807]
[1768791340773,0.21430137,92585.0,92567.0,0.010807]
[1768791340968,0.11866608,92584.0,92567.0,0.010807]
[1768791341167,0.09547327,92583.0,92567.0,0.010807]
[1768791341369,0.11866608,92582.0,92567.0,0.010807]
[1768791341870,0.09547327,92583.0,92567.0,0.010807]
[1768791342070,0.09547327,92583.0,92569.0,0.010807]
[1768791344081,0.11866608,92581.0,92569.0,0.010807]
[1768791344480,0.09728,92584.0,92569.0,0.010807]
[1768791344677,0.11866608,92583.0,92569.0,0.010807]
[1768791346788,0.11866608,92583.0,92565.0,0.010808]
[1768791347083,0.11866608,92583.0,92565.0,0.12614094]
[1768791347791,0.21413935,92583.0,92565.0,0.010808]
[1768791348793,0.21413935,92582.0,92565.0,0.010808]
[1768791349094,0.21413935,92582.0,92572.0,0.14573063]
[1768791350485,0.11866608,92581.0,92563.0,0.01330958]
[1768791350691,0.11866608,92581.0,92572.0,0.14573063]
[1768791352687,0.09547327,92582.0,92572.0,0.14573063]
[1768791353194,0.010804,92596.0,92573.0,0.010807]
[1768791353392,0.02315797,92595.0,92580.0,0.14573063]
[1768791353592,0.12043797,92594.0,92580.0,0.14573063]
[1768791353792,0.02315797,92593.0,92580.0,0.14573063]
[1768791353993,0.02315797,92592.0,92580.0,0.14573063]
[1768791354192,0.02315797,92591.0,92580.0,0.14573063]
[1768791354500,0.02315797,92590.0,92580.0,0.14573063]
[1768791354692,0.02315797,92589.0,92580.0,0.14573063]
[1768791354999,0.02315797,92588.0,92580.0,0.14573063]
[1768791355194,0.02315797,92587.0,92580.0,0.14573063]
[1768791355394,0.02315797,92586.0,92580.0,0.14573063]
[1768791355595,0.11945058,92587.0,92576.0,0.14573063]
[1768791355795,0.02312695,92586.0,92576.0,0.14573063]
[1768791355996,0.11945058,92587.0,92576.0,0.14573063]
[1768791356197,0.02312695,92586.0,92576.0,0.14573063]
[1768791356503,0.11945058,92587.0,92576.0,0.14573063]
[1768791356702,0.02312906,92586.0,92576.0,0.14573063]
[1768791356898,0.11945058,92587.0,92576.0,0.14573063]
[1768791357099,0.02312906,92586.0,92576.0,0.14573063]
[1768791357298,0.11945058,92587.0,92576.0,0.14573063]
[1768791357499,0.02313054,92586.0,92576.0,0.14573063]
[1768791357700,0.11945058,92587.0,92576.0,0.14573063]
[1768791357903,0.02313054,92586.0,92576.0,0.14573063]
[1768791358099,0.02313168,92585.0,92576.0,0.14573063]
[1768791358306,0.11945058,92587.0,92576.0,0.14573063]
[1768791358602,0.02313168,92586.0,92576.0,0.14573063]
[1768791358806,0.11945058,92587.0,92576.0,0.14573063]
[1768791359104,0.02313168,92586.0,92576.0,0.14573063]
[1768791359305,0.02313168,92585.0,92576.0,0.14573063]
[1768791359609,0.11945058,92587.0,92576.0,0.14573063]
[1768791359806,0.02313325,92586.0,92576.0,0.14573063]
[1768791360009,0.02313325,92585.0,92570.0,0.010807]
[1768791360200,0.11945058,92587.0,92576.0,0.14573063]
[1768791360500,0.02313331,92586.0,92576.0,0.14573063]
[1768791360701,0.02313331,92585.0,92576.0,0.14573063]
[1768791360900,0.09728,92594.0,92576.0,0.14573063]
[1768791360901,0.010804,92592.0,92576.0,0.14573063]
[1768791361101,0.02313331,92591.0,92576.0,0.14573063]
[1768791361302,0.02313331,92590.0,92576.0,0.14573063]
[1768791361507,0.02313331,92589.0,92576.0,0.14573063]
[1768791361805,0.02313331,92588.0,92576.0,0.14573063]
[1768791362012,0.02313331,92587.0,92576.0,0.14573063]
[1768791362196,0.02313331,92586.0,92576.0,0.14573063]
[1768791362398,0.02313331,92585.0,92572.0,0.11824128]
[1768791362599,0.010805,92589.0,92576.0,0.14573063]
[1768791362905,0.02312077,92588.0,92579.0,0.14573063]
[1768791363211,0.02312077,92587.0,92579.0,0.14573063]
[1768791363411,0.02312077,92586.0,92579.0,0.14573063]
[1768791363705,0.11945058,92592.0,92579.0,0.14573063]
[1768791363915,0.02312078,92591.0,92579.0,0.14573063]
[1768791364208,0.02312078,92590.0,92579.0,0.14573063]
[1768791364410,0.11945058,92592.0,92579.0,0.14573063]
[1768791364411,0.02312078,92589.0,92579.0,0.14573063]
[1768791364600,0.02312078,92588.0,92579.0,0.14573063]
[1768791364800,0.02312078,92587.0,92579.0,0.14573063]
[1768791364999,0.02312078,92586.0,92579.0,0.14573063]
[1768791365212,0.02312078,92585.0,92579.0,0.14573063]
[1768791365409,0.010805,92591.0,92579.0,0.14573063]
[1768791365601,0.02311394,92590.0,92579.0,0.14573063]
[1768791365800,0.02311394,92589.0,92579.0,0.14573063]
[1768791366029,0.02311394,92588.0,92579.0,0.14573063]
[1768791366215,0.02311394,92587.0,92579.0,0.14573063]
[1768791366408,0.02311394,92586.0,92579.0,0.14573063]
[1768791366715,0.02311394,92585.0,92579.0,0.14573063]
[1768791366906,0.13025458,92592.0,92579.0,0.14573063]
[1768791367099,0.02311468,92591.0,92575.0,0.14573063]
[1768791367302,0.02311468,92590.0,92580.0,0.14573063]
[1768791367504,0.02311468,92589.0,92580.0,0.14573063]
[1768791367812,0.02311468,92588.0,92580.0,0.14573063]
[1768791368012,0.02311468,92587.0,92580.0,0.14573063]
[1768791368208,0.02311468,92586.0,92580.0,0.14573063]
[1768791368408,0.02311468,92585.0,92580.0,0.14573063]
[1768791368609,0.13025458,92592.0,92580.0,0.14573063]
[1768791368810,0.02311457,92591.0,92580.0,0.14573063]
[1768791369013,0.02311457,92590.0,92580.0,0.14573063]
[1768791369204,0.02311457,92589.0,92580.0,0.14573063]
[1768791369404,0.02311457,92588.0,92580.0,0.14573063]
[1768791369612,0.02311457,92587.0,92580.0,0.14573063]
[1768791369813,0.02311457,92586.0,92580.0,0.14573063]
[1768791370016,0.02311457,92585.0,92576.0,0.14573063]
[1768791370211,0.010805,92587.0,92575.0,0.14573063]
[1768791370411,0.02311466,92586.0,92575.0,0.14573063]
[1768791370612,0.02311466,92585.0,92575.0,0.14573063]
[1768791370810,0.010805,92587.0,92575.0,0.14573063]
[1768791371016,0.02311466,92586.0,92572.0,0.11824128]
[1768791371213,0.02311466,92585.0,92576.0,0.14573063]
[1768791371408,0.010805,92587.0,92576.0,0.14573063]
[1768791371610,0.02311473,92586.0,92576.0,0.14573063]
[1768791371814,0.02311473,92585.0,92576.0,0.14573063]
[1768791372014,0.010805,92587.0,92576.0,0.14573063]
[1768791372215,0.02311474,92586.0,92576.0,0.14573063]
[1768791372416,0.02311474,92585.0,92576.0,0.14573063]
[1768791372610,0.010805,92587.0,92576.0,0.14573063]
[1768791372813,0.0231148,92586.0,92576.0,0.14573063]
[1768791373011,0.0231148,92585.0,92576.0,0.14573063]
[1768791373313,0.010805,92587.0,92576.0,0.14573063]
[1768791373525,0.02311489,92586.0,92576.0,0.14573063]
[1768791373812,0.02311489,92585.0,92576.0,0.14573063]
[1768791374012,0.010805,92587.0,92576.0,0.14573063]
[1768791374217,0.02311489,92586.0,92576.0,0.14573063]
[1768791374425,0.02311489,92585.0,92576.0,0.14573063]
[1768791374628,0.010805,92587.0,92576.0,0.14573063]
[1768791374915,0.02311501,92586.0,92576.0,0.14573063]
[1768791375111,0.02311501,92585.0,92576.0,0.14573063]
[1768791375314,0.010805,92587.0,92570.0,0.14573063]
[1768791375518,0.010805,92585.0,92570.0,0.26397191]
[1768791376524,0.0231105,92584.0,92570.0,0.14573063]
[1768791376709,0.010805,92585.0,92570.0,0.26397191]
[1768791377621,0.010805,92585.0,92571.0,0.21780947]
[1768791377921,0.010805,92588.0,92573.0,0.11824128]
[1768791378121,0.02311066,92587.0,92578.0,0.14573063]
[1768791378419,0.02311066,92586.0,92578.0,0.14573063]
[1768791378717,0.02311066,92585.0,92578.0,0.14573063]
[1768791378925,0.010805,92588.0,92575.0,0.14573063]
[1768791379110,0.02311085,92587.0,92578.0,0.14573063]
[1768791379310,0.02311085,92586.0,92578.0,0.14573063]
[1768791379620,0.010805,92588.0,92578.0,0.14573063]
[1768791380211,0.010804,92592.0,92578.0,0.26397191]
[1768791380411,0.09728,92592.0,92579.0,0.11824128]
[1768791381519,0.010805,92587.0,92578.0,0.24529882]
[1768791381706,0.010805,92587.0,92578.0,0.14573063]
[1768791382922,0.09728,92592.0,92578.0,0.14573063]
[1768791383824,0.010805,92587.0,92578.0,0.14573063]
[1768791385419,0.010805,92590.0,92578.0,0.14573063]
[1768791386324,0.010805,92590.0,92578.0,0.2647619]
[1768791386526,0.09728,92592.0,92578.0,0.2647619]
[1768791386824,0.010805,92588.0,92578.0,0.2647619]
[1768791390025,0.09728,92592.0,92580.0,0.11903127]
[1768791390523,0.010805,92588.0,92580.0,0.2647619]
[1768791391432,0.02298548,92587.0,92580.0,0.2647619]
[1768791391630,0.108085,92592.0,92580.0,0.11903127]
[1768791392632,0.010805,92590.0,92580.0,0.11903127]
[1768791394531,0.010805,92590.0,92580.0,0.2647619]
[1768791396632,0.010805,92590.0,92581.0,0.11903127]
[1768791399638,0.09728,92592.0,92581.0,0.11903127]
[1768791401435,0.010805,92589.0,92581.0,0.11903127]
[1768791402324,0.010805,92587.0,92581.0,0.11903127]
[1768791402535,0.010805,92587.0,92580.0,0.24185798]
[1768791402841,0.010805,92587.0,92580.0,0.09612735]
[1768791403550,0.02289032,92586.0,92580.0,0.09612735]
[1768791403728,0.02289032,92585.0,92580.0,0.09612735]
[1768791403930,0.02289032,92584.0,92580.0,0.09612735]
[1768791404240,0.010806,92582.0,92578.0,1.4e-07]
[1768791404432,0.02289032,92581.0,92574.0,0.14573063]
[1768791404833,0.02289032,92581.0,92571.0,0.14573063]
[1768791406145,0.02289032,92581.0,92572.0,0.09868784]
[1768791406342,0.02289032,92581.0,92573.0,0.11941414]
[1768791406940,0.02289032,92581.0,92574.0,0.11941414]
[1768791407634,0.010805,92585.0,92574.0,0.21810198]